fUST/lending_fUST_20241222
["ID","MTS","AMOUNT","RATE_DAILY","PERIOD"]
[346300685,1734879067766,-500.0,0.0001452,2]
[346300686,1734879067776,-500.0,0.0001452,2]
[346300687,1734879067785,-500.00449415,0.0001452,2]
[346300688,1734879067794,-509.19213729,0.0001452,2]
[346300689,1734879067803,-500.0,0.0001452,2]
[346300690,1734879067813,-525.25757993,0.0001452,2]
[346300691,1734879067822,-520.42,0.0001452,2]
[346300692,1734879067832,-742.31,0.0001452,2]
[346300693,1734879067841,-500.0,0.0001452,2]
[346300694,1734879067852,-1064.95,0.0001452,2]
[346300695,1734879067861,-500.0,0.0001452,2]
[346300696,1734879067870,-500.0,0.0001452,2]
[346300697,1734879067879,-573.54,0.0001452,2]
[346300698,1734879067889,-500.0,0.0001452,2]
[346300699,1734879067898,-500.0,0.0001452,2]
[346300700,1734879067907,-500.0,0.0001452,2]
[346300701,1734879067916,-500.0,0.0001452,2]
[346300702,1734879067926,-500.0,0.0001452,2]
[346300703,1734879067935,-1236.21,0.0001452,2]
[346300704,1734879067944,-500.0,0.0001452,2]
[346300705,1734879067953,-500.0,0.0001452,2]
[346300706,1734879067963,-274.22527608,0.0001452,2]
[346300707,1734879067972,-898.82,0.0001452,2]
[346300708,1734879067981,-500.0,0.0001452,2]
[346300709,1734879067990,-500.0,0.0001452,2]
[346300710,1734879068000,-500.0,0.0001452,2]
[346300711,1734879068009,-500.0,0.0001452,2]
[346300712,1734879068018,-500.0,0.0001452,2]
[346300713,1734879068028,-500.0,0.0001452,2]
[346300714,1734879068037,-500.0,0.0001452,2]
[346300715,1734879068046,-500.0,0.0001452,2]
[346300716,1734879068056,-500.0,0.0001452,2]
[346300717,1734879068065,-500.0,0.0001452,2]
[346300718,1734879068074,-500.0,0.0001452,2]
[346300719,1734879068083,-500.0,0.0001452,2]
[346300720,1734879068092,-254.26718306,0.0001452,2]
[346300721,1734879068104,-500.0,0.0001452,2]
[346300722,1734879068114,-500.0,0.0001452,2]
[346300723,1734879068123,-500.0,0.0001452,2]
[346300724,1734879068133,-524.6,0.0001452,2]
[346300725,1734879068142,-719.19,0.0001452,2]
[346300726,1734879068151,-500.0,0.0001452,2]
[346300727,1734879068161,-500.0,0.0001452,2]
[346300728,1734879068170,-500.0,0.0001452,2]
[346300729,1734879068181,-504.62572853,0.0001452,2]
[346300730,1734879068191,-500.0,0.0001452,2]
[346300731,1734879068201,-500.0,0.0001452,2]
[346300732,1734879068210,-800.37,0.0001452,2]
[346300733,1734879068219,-500.0,0.0001452,2]
[346300734,1734879068229,-245.58863842,0.0001452,2]
[346300735,1734879068238,-598.76,0.0001452,2]
[346300736,1734879068248,-3300.35,0.0001452,2]
[346300737,1734879068257,-500.0,0.0001452,2]
[346300738,1734879068267,-500.0,0.0001452,2]
[346300739,1734879068276,-500.0,0.0001452,2]
[346300740,1734879068286,-500.0,0.0001452,2]
[346300741,1734879068295,-500.0,0.0001452,2]
[346300742,1734879068304,-504.04,0.0001452,2]
[346300743,1734879068313,-1737.24,0.0001452,2]
[346300744,1734879068323,-500.0,0.0001452,2]
[346300745,1734879068332,-1257.09,0.0001452,2]
[346300746,1734879068341,-500.0,0.0001452,2]
[346300747,1734879068353,-500.0,0.0001452,2]
[346300748,1734879068363,-500.0,0.0001452,2]
[346300749,1734879068372,-883.38,0.0001452,2]
[346300750,1734879068381,-500.0,0.0001452,2]
[346300751,1734879068392,-1135.53,0.0001452,2]
[346300752,1734879068400,-500.0,0.0001452,2]
[346300753,1734879068409,-1111.74,0.0001452,2]
[346300754,1734879068419,-547.5,0.0001452,2]
[346300755,1734879068428,-500.0,0.0001452,2]
[346300756,1734879068437,-500.0,0.0001452,2]
[346300757,1734879068447,-1072.71,0.0001452,2]
[346300758,1734879068456,-500.0,0.0001452,2]
[346300759,1734879068465,-1163.86,0.0001452,2]
[346300760,1734879068475,-510.54,0.0001452,2]
[346300761,1734879068485,-500.0,0.0001452,2]
[346300762,1734879068497,-21.6652567,0.0001452,2]
[346300763,1734879068514,-618.1547433,0.0001452,2]
[346300764,1734879068524,-500.0,0.0001452,2]
[346300765,1734879068533,-500.0,0.0001452,2]
[346300766,1734879068542,-500.0,0.0001452,2]
[346300767,1734879068551,-318.7400967,0.0001452,2]
[346300768,1734879197475,3000.0,0.000131,30]
[346300769,1734879197873,3000.0,0.0001311,30]
[346300770,1734879198267,3000.0,0.0001312,30]
[346300771,1734879199069,2145.927669,0.0001313,30]
[346300772,1734879199094,854.072331,0.0001313,30]
[346300773,1734879199204,3000.0,0.0001314,30]
[346300774,1734879199628,3000.0,0.0001315,30]
[346300775,1734879200054,1735.86419085,0.0001316,30]
[346300776,1734879200083,1264.13580915,0.0001316,30]
[346300777,1734879200434,3000.0,0.0001317,30]
[346300778,1734879200879,3000.0,0.0001318,30]
[346300779,1734879201400,3000.0,0.0001319,30]
[346300780,1734879201953,3000.0,0.000132,30]
[346300781,1734879202363,3000.0,0.0001321,30]
[346300782,1734879202782,3000.0,0.0001322,30]
[346300783,1734879203407,3000.0,0.0001323,30]
[346300784,1734879203775,3437.358197,0.0001324,30]
[346300850,1734880232719,-1857.2064609,0.00012153,2]
[346300852,1734880232729,-300.0,0.00012999,2]
[346300854,1734880232740,-300.0,0.00012999,2]
[346300856,1734880232749,-2000.0,0.00013,2]
[346300858,1734880232759,-2000.0,0.00013,2]
[346300860,1734880232768,-2000.0,0.00013,2]
[346300862,1734880232777,-500.0,0.00013107,2]
[346300865,1734880232787,-500.0,0.00013107,2]
[346300867,1734880232796,-535.24653413,0.00013107,2]
[346300869,1734880232807,-500.0,0.00013107,2]
[346300871,1734880232816,-500.0,0.00013107,2]
[346300874,1734880232829,-500.0,0.00013107,2]
[346300875,1734880232839,-500.0,0.00013107,2]
[346300877,1734880232848,-500.0,0.00013107,2]
[346300879,1734880232857,-464.46284393,0.00013107,2]
[346300881,1734880232866,-500.0,0.00013107,2]
[346300883,1734880232875,-500.0,0.00013107,2]
[346300884,1734880232884,-500.0,0.00013107,2]
[346300885,1734880232893,-500.0,0.00013107,2]
[346300886,1734880232903,-500.0,0.00013107,2]
[346300887,1734880232912,-500.0,0.00013107,2]
[346300888,1734880232921,-500.0,0.00013107,2]
[346300889,1734880232930,-500.0,0.00013107,2]
[346300890,1734880232940,-500.0,0.00013107,2]
[346300891,1734880232949,-267.91187709,0.00013107,2]
[346300892,1734880232958,-280.88451862,0.00013107,2]
[346300893,1734880232967,-500.0,0.00013107,2]
[346300894,1734880232976,-500.0,0.00013107,2]
[346300895,1734880232986,-500.0,0.00013107,2]
[346300896,1734880232995,-500.0,0.00013107,2]
[346300897,1734880233004,-500.0,0.00013107,2]
[346300898,1734880233016,-366.15478211,0.00013107,2]
[346300899,1734880233025,-500.0,0.00013107,2]
[346300900,1734880233035,-500.0,0.00013107,2]
[346300901,1734880233046,-500.0,0.00013107,2]
[346300902,1734880233055,-500.0,0.00013107,2]
[346300904,1734880233064,-500.0,0.00013107,2]
[346300906,1734880233077,-500.0,0.00013107,2]
[346300908,1734880233086,-500.0,0.00013107,2]
[346300910,1734880233096,-500.0,0.00013107,2]
[346300912,1734880233105,-500.0,0.00013107,2]
[346300914,1734880233114,-500.0,0.00013107,2]
[346300916,1734880233124,-419.88637976,0.00013107,2]
[346300918,1734880233136,-80.11362024,0.00013107,2]
[346300920,1734880233146,-500.0,0.00013107,2]
[346300922,1734880233156,-500.0,0.00013107,2]
[346300924,1734880233166,-500.0,0.00013107,2]
[346300926,1734880233175,-500.0,0.00013107,2]
[346300928,1734880233185,-500.0,0.00013107,2]
[346300930,1734880233195,-500.0,0.00013107,2]
[346300932,1734880233204,-283.48056866,0.00013107,2]
[346301107,1734880238554,-216.51943134,0.00013107,2]
[346301109,1734880238565,-500.0,0.00013107,2]
[346301111,1734880238575,-500.0,0.00013107,2]
[346301113,1734880238584,-500.0,0.00013107,2]
[346301115,1734880238594,-500.0,0.00013107,2]
[346301117,1734880238604,-204.728,0.00013107,2]
[346301119,1734880238613,-201.56078784,0.00013107,2]
[346301121,1734880238622,-500.0,0.00013107,2]
[346301123,1734880238632,-500.0,0.00013107,2]
[346301125,1734880238642,-500.0,0.00013107,2]
[346301127,1734880238651,-500.0,0.00013107,2]
[346301130,1734880238660,-500.0,0.00013107,2]
[346301132,1734880238670,-500.0,0.00013107,2]
[346301134,1734880238679,-500.0,0.00013107,2]
[346301136,1734880238689,-500.0,0.00013107,2]
[346301137,1734880238698,-500.0,0.00013107,2]
[346301139,1734880238708,-500.0,0.00013107,2]
[346301142,1734880238718,-500.0,0.00013107,2]
[346301144,1734880238728,-500.0,0.00013107,2]
[346301146,1734880238737,-500.0,0.00013107,2]
[346301148,1734880238747,-435.49178082,0.00013107,2]
[346301150,1734880238759,-64.50821918,0.00013107,2]
[346301152,1734880238769,-500.0,0.00013107,2]
[346301154,1734880238779,-500.0,0.00013107,2]
[346301156,1734880238788,-500.0,0.00013107,2]
[346301158,1734880238797,-500.0,0.00013107,2]
[346301180,1734880238807,-500.0,0.00013107,2]
[346301182,1734880239009,-500.0,0.00013107,2]
[346301184,1734880239021,-500.0,0.00013107,2]
[346301186,1734880239030,-500.0,0.00013107,2]
[346301189,1734880239040,-500.0,0.00013107,2]
[346301190,1734880239050,-500.0,0.00013107,2]
[346301192,1734880239059,-500.0,0.00013107,2]
[346301195,1734880239069,-500.0,0.00013107,2]
[346301197,1734880239080,-500.0,0.00013107,2]
[346301199,1734880239089,-500.0,0.00013107,2]
[346301201,1734880239098,-500.0,0.00013107,2]
[346301203,1734880239107,-500.0,0.00013107,2]
[346301205,1734880239116,-500.0,0.00013107,2]
[346301207,1734880239126,-500.0,0.00013107,2]
[346301209,1734880239135,-500.0,0.00013107,2]
[346301211,1734880239144,-500.0,0.00013107,2]
[346301212,1734880239153,-500.0,0.00013107,2]
[346301214,1734880239165,-500.0,0.00013107,2]
[346301216,1734880239174,-500.0,0.00013107,2]
[346301218,1734880239183,-500.0,0.00013107,2]
[346301220,1734880239193,-500.0,0.00013107,2]
[346301222,1734880239202,-264.83474823,0.00013107,2]
[346301376,1734880241031,-235.16525177,0.00013107,2]
[346301377,1734880241040,-500.0,0.00013107,2]
[346301379,1734880241049,-500.0,0.00013107,2]
[346301381,1734880241059,-500.0,0.00013107,2]
[346301383,1734880241068,-362.22543275,0.00013107,2]
[346301384,1734880241078,-500.0,0.00013107,2]
[346301386,1734880241088,-500.0,0.00013107,2]
[346301388,1734880241097,-500.0,0.00013107,2]
[346301390,1734880241107,-500.0,0.00013107,2]
[346301392,1734880241117,-500.0,0.00013107,2]
[346301394,1734880241127,-500.0,0.00013107,2]
[346301395,1734880241138,-500.0,0.00013107,2]
[346301397,1734880241148,-500.0,0.00013107,2]
[346301399,1734880241157,-500.0,0.00013107,2]
[346301402,1734880241167,-500.0,0.00013107,2]
[346301404,1734880241177,-350.0,0.00013107,2]
[346301406,1734880241186,-500.0,0.00013107,2]
[346301408,1734880241196,-150.708,0.00013108,2]
[346301410,1734880241205,-2167.0,0.00013108,2]
[346301412,1734880241214,-534.0,0.00013108,2]
[346301414,1734880241223,-2374.0,0.00013108,2]
[346301416,1734880241233,-1303.2199011,0.0001314,2]
[346301417,1734880241242,-3200.0,0.0001324,2]
[346301418,1734880241251,-1303.21990107,0.00013255,2]
[346301419,1734880241260,-1303.21990107,0.00013369,2]
[346301420,1734880241270,-1303.21990107,0.00013484,2]
[346301421,1734880241279,-1303.21990107,0.00013598,2]
[346301422,1734880241288,-666.0,0.00013598,2]
[346301423,1734880241298,-204.53485688,0.00013599,2]
[346301424,1734880241307,-108.55410322,0.000136,2]
[346301425,1734880241318,-3288.00000001,0.000136,2]
[346301426,1734880241349,-1643.60000001,0.000136,2]
[346301714,1734880244173,-443.67191248,0.000136,2]
[346302710,1734880277821,9274.17,0.00022,120]
[346302749,1734881433199,-999.7066692,0.00012,2]
[346302750,1734881433250,-5931.01486257,0.00012,2]
[346303347,1734881444444,-237.49450623,0.0001188,2]
[346303349,1734881444457,-711.27846823,0.00012,2]
[346303351,1734881444467,-300.0,0.00012145,2]
[346303353,1734881444478,-300.0,0.00012145,2]
[346303386,1734881444786,-4646.7697594,0.00012146,2]
[346303391,1734881444813,-56.13997358,0.00012599,2]
[346305146,1734881529133,1000.0,0.00022,120]
[346305148,1734881702763,216.8555032,0.00022,120]
[346305170,1734882337423,-1771.5547815,0.0002,30]
[346305171,1734882337451,-228.4452185,0.0002,30]
[346305172,1734882339070,-1496.20939808,0.0002,30]
[346305173,1734882339101,-503.79060192,0.0002,30]
[346305174,1734882340643,-2000.0,0.0002,30]
[346305175,1734882342360,-941.70482101,0.0002,30]
[346305179,1734882405142,-300.0,0.00011161,2]
[346305180,1734882405162,-300.0,0.00011161,2]
[346305181,1734882405183,-311.79158936,0.00011162,2]
[346305532,1734882632259,-587.00313585,0.00011049,2]
[346305535,1734882632271,-12.99686415,0.00011049,2]
[346305537,1734882632280,-300.0,0.00011161,2]
[346305539,1734882632290,-300.0,0.00011161,2]
[346305541,1734882632299,-16778.35909674,0.00011162,2]
[346305543,1734882632311,-321.6296292,0.00011328,2]
[346305545,1734882632321,-169.198963,0.00011394,2]
[346305547,1734882632330,-169.198963,0.00011451,2]
[346305548,1734882632339,-529.5427066,0.00011459,2]
[346305550,1734882632349,-1270.9118667,0.00011869,2]
[346305552,1734882632358,-9674.96687571,0.00012,2]
[346305554,1734882632368,-7095.80852022,0.00012055,2]
[346305627,1734882637864,-1000.0,0.00012055,2]
[346305629,1734882637876,-928.3289022,0.00012055,2]
[346305631,1734882637889,-608.89832077,0.00012055,2]
[346305633,1734882637900,-420.0,0.00012263,2]
[346305635,1734882637910,-420.0,0.00012277,2]
[346305637,1734882637920,-198.60076642,0.00012497,2]
[346305639,1734882637930,-2555.03651069,0.00012598,2]
[346305641,1734882637940,-96388.0,0.000126,2]
[346305643,1734882637950,-35003.01595821,0.000126,2]
[346305646,1734882637960,-351.6474089,0.00012641,2]
[346305648,1734882637970,-153.3554759,0.00012778,2]
[346305650,1734882637980,-416.21056257,0.000129,2]
[346305652,1734882637989,-198.60076642,0.00012999,2]
[346305654,1734882637999,-40597.27275692,0.00013,2]
[346305656,1734882638009,-416.21056253,0.00013073,2]
[346305658,1734882638019,-315.289,0.00013075,2]
[346305660,1734882638029,-2128.0,0.00013131,2]
[346305662,1734882638038,-529.0,0.00013131,2]
[346305663,1734882638048,-2360.0,0.00013131,2]
[346305665,1734882638061,-151.0,0.00013189,2]
[346305667,1734882638072,-500.0,0.00013189,2]
[346305669,1734882638082,-3200.0,0.00013189,2]
[346305671,1734882638092,-587.0,0.00013473,2]
[346305674,1734882638106,-198.60076642,0.000135,2]
[346305676,1734882638123,-587.0,0.00013505,2]
[346305678,1734882638132,-666.0,0.00013598,2]
[346305680,1734882638143,-38421.22658058,0.000136,2]
[346305681,1734882638153,-2000.0,0.000136,2]
[346305684,1734882638163,-2000.0,0.000136,2]
[346305685,1734882638173,-4000.0,0.000136,2]
[346305687,1734882638184,-2000.0,0.000136,2]
[346305689,1734882638195,-500.0,0.00013673,2]
[346305692,1734882638205,-4917.52403675,0.00013674,2]
[346305693,1734882638214,-50423.25918386,0.00013697,5]
[346305696,1734882638227,-13914.46227803,0.00013697,5]
[346305703,1734882638284,-3392.54441862,0.00013697,5]
[346305705,1734882638293,-219.28873151,0.00013698,2]
[346305707,1734882638303,-151.0,0.00013698,2]
[346305709,1734882638315,-217.30952,0.00013698,2]
[346305711,1734882638324,-581.7637746,0.00013698,2]
[346305713,1734882638334,-151.0,0.00013698,2]
[346305715,1734882638343,-194.657548,0.00013698,2]
[346305717,1734882638353,-546.67,0.00013698,2]
[346305719,1734882638362,-500.0,0.00013698,2]
[346305721,1734882638371,-500.0,0.00013698,2]
[346305723,1734882638381,-500.0,0.00013698,2]
[346305725,1734882638390,-505.10605641,0.00013698,2]
[346305727,1734882638400,-500.0,0.00013698,2]
[346305729,1734882638409,-500.0,0.00013698,2]
[346305731,1734882638419,-500.0,0.00013698,2]
[346305733,1734882638428,-500.0,0.00013698,2]
[346305735,1734882638438,-500.0,0.00013698,2]
[346305737,1734882638448,-500.0,0.00013698,2]
[346305739,1734882638457,-550.95,0.00013698,2]
[346305741,1734882638467,-485.86651363,0.00013698,2]
[346305743,1734882638476,-500.0,0.00013698,2]
[346305745,1734882638485,-568.07,0.00013698,2]
[346305747,1734882638495,-151.0,0.00013698,2]
[346305749,1734882638504,-152.469546,0.00013698,2]
[346305751,1734882638514,-618.59,0.00013698,2]
[346305753,1734882638524,-500.0,0.00013698,2]
[346305755,1734882638534,-151.0,0.00013698,2]
[346305757,1734882638543,-151.0,0.00013698,2]
[346305759,1734882638553,-500.0,0.00013698,2]
[346305761,1734882638564,-919.51,0.00013698,2]
[346305763,1734882638573,-500.0,0.00013698,2]
[346305765,1734882638583,-522.68,0.00013698,2]
[346305767,1734882638592,-500.0,0.00013698,2]
[346305769,1734882638602,-500.0,0.00013698,2]
[346305771,1734882638611,-500.0,0.00013698,2]
[346305772,1734882638621,-500.0,0.00013698,2]
[346305774,1734882638631,-500.0,0.00013698,2]
[346305777,1734882638641,-500.0,0.00013698,2]
[346305779,1734882638650,-274.22527608,0.00013698,2]
[346305781,1734882638660,-807.3,0.00013698,2]
[346305783,1734882638671,-500.0,0.00013698,2]
[346305785,1734882638681,-500.0,0.00013698,2]
[346305787,1734882638693,-1102.51,0.00013698,2]
[346305789,1734882638703,-500.0,0.00013698,2]
[346305791,1734882638712,-151.0,0.00013698,2]
[346305793,1734882638721,-153.840585,0.00013698,2]
[346305795,1734882638732,-151.0,0.00013698,2]
[346305797,1734882638742,-151.46687,0.00013698,2]
[346305799,1734882638752,-500.0,0.00013698,2]
[346305801,1734882638762,-500.0,0.00013698,2]
[346305803,1734882638771,-500.0,0.00013698,2]
[346305805,1734882638781,-500.0,0.00013698,2]
[346305807,1734882638791,-500.0,0.00013698,2]
[346305809,1734882638800,-500.0,0.00013698,2]
[346305811,1734882638812,-500.0,0.00013698,2]
[346305813,1734882638821,-500.0,0.00013698,2]
[346305815,1734882638831,-500.0,0.00013698,2]
[346305817,1734882638841,-500.0,0.00013698,2]
[346305819,1734882638851,-500.0,0.00013698,2]
[346305821,1734882638860,-500.0,0.00013698,2]
[346305823,1734882638870,-629.3,0.00013698,2]
[346305825,1734882638879,-504.62572853,0.00013698,2]
[346305827,1734882638888,-500.0,0.00013698,2]
[346305829,1734882638897,-500.0,0.00013698,2]
[346305831,1734882638909,-254.26718306,0.00013698,2]
[346305833,1734882638918,-500.0,0.00013698,2]
[346305835,1734882638928,-500.0,0.00013698,2]
[346305837,1734882638938,-500.0,0.00013698,2]
[346305839,1734882638947,-151.0,0.00013698,2]
[346305841,1734882638956,-151.0,0.00013698,2]
[346305843,1734882638965,-500.0,0.00013698,2]
[346305845,1734882638975,-151.0,0.00013698,2]
[346305847,1734882638984,-151.0,0.00013698,2]
[346305850,1734882638994,-151.0,0.00013698,2]
[346305853,1734882639015,-500.0,0.00013698,2]
[346305855,1734882639024,-151.0,0.00013698,2]
[346305857,1734882639035,-500.0,0.00013698,2]
[346305859,1734882639045,-500.0,0.00013698,2]
[346305861,1734882639055,-500.0,0.00013698,2]
[346305863,1734882639066,-500.0,0.00013698,2]
[346305865,1734882639076,-151.0,0.00013698,2]
[346305867,1734882639085,-151.0,0.00013698,2]
[346305870,1734882639096,-500.0,0.00013698,2]
[346305872,1734882639110,-500.0,0.00013698,2]
[346305874,1734882639120,-500.0,0.00013698,2]
[346305876,1734882639130,-500.0,0.00013698,2]
[346305878,1734882639140,-500.0,0.00013698,2]
[346305880,1734882639151,-500.0,0.00013698,2]
[346305882,1734882639160,-500.0,0.00013698,2]
[346305884,1734882639170,-544.75,0.00013698,2]
[346305886,1734882639181,-245.58863842,0.00013698,2]
[346305888,1734882639191,-500.0,0.00013698,2]
[346305890,1734882639201,-500.0,0.00013698,2]
[346305892,1734882639210,-500.0,0.00013698,2]
[346305894,1734882639220,-999.56,0.00013698,2]
[346305896,1734882639230,-1120.79,0.00013698,2]
[346305898,1734882639239,-500.0,0.00013698,2]
[346305900,1734882639249,-500.0,0.00013698,2]
[346305902,1734882639258,-993.59,0.00013698,2]
[346305905,1734882639268,-534.09,0.00013698,2]
[346305907,1734882639278,-500.0,0.00013698,2]
[346305909,1734882639287,-1039.21,0.00013698,2]
[346305911,1734882639298,-500.0,0.00013698,2]
[346305913,1734882639307,-938.62,0.00013698,2]
[346305915,1734882639320,-500.0,0.00013698,2]
[346305917,1734882639330,-500.0,0.00013698,2]
[346305919,1734882639340,-500.0,0.00013698,2]
[346305921,1734882639350,-500.0,0.00013698,2]
[346305923,1734882639360,-500.0,0.00013698,2]
[346305925,1734882639370,-500.0,0.00013698,2]
[346305927,1734882639380,-500.0,0.00013698,2]
[346305929,1734882639390,-500.0,0.00013698,2]
[346305931,1734882639400,-500.0,0.00013698,2]
[346305933,1734882639409,-1111.02,0.00013698,2]
[346305936,1734882639419,-500.0,0.00013698,2]
[346305938,1734882639428,-500.0,0.00013698,2]
[346305941,1734882639438,-500.0,0.00013698,2]
[346305944,1734882639448,-1216.02,0.00013698,2]
[346305947,1734882639457,-500.0,0.00013698,2]
[346305949,1734882639466,-500.0,0.00013698,2]
[346305951,1734882639476,-500.0,0.00013698,2]
[346305953,1734882639486,-773.6,0.00013698,2]
[346305955,1734882639495,-510.01,0.00013698,2]
[346305957,1734882639505,-500.0,0.00013698,2]
[346305959,1734882639514,-500.0,0.00013698,2]
[346305961,1734882639523,-500.0,0.00013698,2]
[346305963,1734882639533,-555.46832239,0.00013698,2]
[346305965,1734882639543,-1536.02,0.00013698,2]
[346305967,1734882639552,-151.0,0.00013698,2]
[346305969,1734882639562,-500.0,0.00013698,2]
[346305972,1734882639571,-500.0,0.00013698,2]
[346305974,1734882639580,-890.78,0.00013698,2]
[346305975,1734882639590,-500.0,0.00013698,2]
[346305978,1734882639599,-500.0,0.00013698,2]
[346305980,1734882639608,-500.0,0.00013698,2]
[346305982,1734882639618,-500.0,0.00013698,2]
[346305984,1734882639627,-500.0,0.00013698,2]
[346305986,1734882639638,-2060.8,0.00013698,2]
[346305988,1734882639649,-500.0,0.00013698,2]
[346305990,1734882639658,-500.0,0.00013698,2]
[346305992,1734882639668,-555.48,0.00013698,2]
[346305994,1734882639678,-500.0,0.00013698,2]
[346305996,1734882639687,-500.0,0.00013698,2]
[346305998,1734882639697,-500.0,0.00013698,2]
[346306000,1734882639707,-566.91,0.00013698,2]
[346306002,1734882639717,-500.0,0.00013698,2]
[346306004,1734882639727,-500.0,0.00013698,2]
[346306006,1734882639737,-500.0,0.00013698,2]
[346306008,1734882639747,-343.12,0.00013698,2]
[346306010,1734882639757,-500.0,0.00013698,2]
[346306012,1734882639767,-500.0,0.00013698,2]
[346306014,1734882639777,-500.0,0.00013698,2]
[346306016,1734882639786,-3186.28,0.00013698,2]
[346306018,1734882639796,-500.0,0.00013698,2]
[346306020,1734882639806,-500.0,0.00013698,2]
[346306022,1734882639819,-500.0,0.00013698,2]
[346306024,1734882639828,-5917.15,0.00013698,2]
[346306026,1734882639838,-500.0,0.00013698,2]
[346306028,1734882639849,-501.43043041,0.00013698,2]
[346306030,1734882639858,-500.0,0.00013698,2]
[346306032,1734882639868,-500.0,0.00013698,2]
[346306034,1734882639878,-794.47,0.00013698,2]
[346306036,1734882639888,-500.0,0.00013698,2]
[346306038,1734882639898,-517.54,0.00013698,2]
[346306041,1734882639911,-500.0,0.00013698,2]
[346306042,1734882639921,-500.0,0.00013698,2]
[346306045,1734882639931,-500.0,0.00013698,2]
[346306047,1734882639941,-1153.13,0.00013698,2]
[346306049,1734882639951,-706.46,0.00013698,2]
[346306051,1734882639960,-500.0,0.00013698,2]
[346306053,1734882639969,-500.0,0.00013698,2]
[346306055,1734882639979,-576.95295506,0.00013698,2]
[346306057,1734882639989,-240.65357174,0.00013698,2]
[346306059,1734882639998,-500.0,0.00013698,2]
[346306061,1734882640008,-505.26,0.00013698,2]
[346306063,1734882640018,-2452.15,0.00013698,2]
[346306065,1734882640027,-500.0,0.00013698,2]
[346306067,1734882640036,-500.0,0.00013698,2]
[346306069,1734882640046,-987.13,0.00013698,2]
[346306071,1734882640056,-864.98,0.00013698,2]
[346306073,1734882640067,-151.0,0.00013698,2]
[346306075,1734882640077,-151.0,0.00013698,2]
[346306077,1734882640087,-500.0,0.00013698,2]
[346306079,1734882640097,-500.0,0.00013698,2]
[346306081,1734882640107,-1422.84,0.00013698,2]
[346306083,1734882640119,-500.0,0.00013698,2]
[346306085,1734882640129,-440.74708564,0.00013698,2]
[346306087,1734882640139,-66.60307572,0.00013698,2]
[346306126,1734882640619,-433.39692428,0.00013698,2]
[346306128,1734882640630,-500.0,0.00013698,2]
[346306130,1734882640639,-297.48391546,0.00013698,2]
[346306132,1734882640649,-500.0,0.00013698,2]
[346306134,1734882640658,-151.0,0.00013698,2]
[346306136,1734882640667,-151.0,0.00013698,2]
[346306138,1734882640677,-500.0,0.00013698,2]
[346306140,1734882640686,-500.0,0.00013698,2]
[346306142,1734882640695,-2219.63,0.00013698,2]
[346306144,1734882640704,-500.0,0.00013698,2]
[346306146,1734882640714,-751.0,0.00013698,2]
[346306148,1734882640723,-501.44767073,0.00013698,2]
[346306150,1734882640732,-500.0,0.00013698,2]